fUSD/lending_fUSD_20251109
["ID","MTS","AMOUNT","RATE_DAILY","PERIOD"]
[393443104,1762660237951,-208.59108258,0.00017829,2]
[393443105,1762660237961,-241.55605504,0.00017829,2]
[393443106,1762660237971,-500.0,0.00017829,2]
[393443107,1762660237983,-390.62067675,0.00017829,2]
[393443108,1762660237993,-9936.03794517,0.0001783,2]
[393443109,1762660238004,-27488.0557973,0.0001783,2]
[393443110,1762660238016,-5207.13394259,0.0001783,2]
[393443111,1762660238026,-8224.13779044,0.00017833,2]
[393443112,1762660238037,-8224.13779044,0.00017844,2]
[393443113,1762660238047,-3977.34526776,0.00017856,2]
[393443114,1762660238062,-277.595,0.00017856,2]
[393443115,1762660238096,-177.54630722,0.00017662,2]
[393443116,1762660238109,-277.595,0.00017662,2]
[393443117,1762660238119,-3969.19752268,0.00017856,2]
[393443118,1762660238130,-2000.0,0.00017856,2]
[393443119,1762660238141,-200.0,0.00017856,2]
[393443120,1762660238151,-724.43654782,0.0001786,2]
[393443121,1762660238161,-8224.13779044,0.00017867,2]
[393443122,1762660238170,-150.0,0.00017869,2]
[393443123,1762660238180,-153.62806036,0.00017869,2]
[393443124,1762660238190,-150.0,0.00017869,2]
[393443125,1762660238200,-500.0,0.00017869,2]
[393443126,1762660238210,-503.93536918,0.00017873,2]
[393443127,1762660238219,-500.0,0.00017873,2]
[393443128,1762660238229,-500.0,0.00017873,2]
[393443129,1762660238238,-501.83285392,0.00017873,2]
[393443130,1762660238248,-500.0,0.00017873,2]
[393443131,1762660238258,-525.70011692,0.00017873,2]
[393443132,1762660238268,-500.0,0.00017873,2]
[393443133,1762660238278,-500.0,0.00017873,2]
[393443134,1762660238288,-500.0,0.00017873,2]
[393443135,1762660238297,-500.0,0.00017873,2]
[393443136,1762660238306,-500.0,0.00017873,2]
[393443137,1762660238315,-500.0,0.00017873,2]
[393443138,1762660238324,-500.0,0.00017873,2]
[393443139,1762660238333,-435.56368762,0.00017873,2]
[393443140,1762660238343,-59139.83748619,0.00017874,2]
[393443141,1762660238352,-8224.13779044,0.00017878,2]
[393443142,1762660238362,-333.0,0.00017878,2]
[393443143,1762660238372,-8224.13779044,0.00017889,2]
[393443144,1762660238382,-903.813,0.00017891,2]
[393443145,1762660238392,-3098.0,0.00017897,2]
[393443146,1762660238402,-1019.17,0.00017899,2]
[393443147,1762660238412,-500.0,0.00017899,2]
[393443148,1762660238422,-548.24671781,0.00017899,2]
[393443149,1762660238431,-500.0,0.00017899,2]
[393443150,1762660238441,-511.0,0.00017899,2]
[393443151,1762660238450,-500.0,0.00017899,2]
[393443152,1762660238460,-500.0,0.00017899,2]
[393443153,1762660238470,-500.0,0.00017899,2]
[393443154,1762660238479,-198324.2,0.000179,2]
[393443155,1762660238490,-1205.93,0.000179,2]
[393443156,1762660238500,-150.0,0.000179,2]
[393443157,1762660238510,-150.0,0.000179,3]
[393443158,1762660238520,-262.54057205,0.000179,3]
[393443159,1762660238531,-156.52540464,0.000179,3]
[393443160,1762660238540,-251.94759367,0.000179,3]
[393443161,1762660238549,-1439.2123557,0.000179,3]
[393443162,1762660238559,-5000.0,0.000179,2]
[393443163,1762660238568,-500.0,0.000179,6]
[393443164,1762660238577,-427.7302356,0.000179,3]
[393443165,1762660238587,-269.35917809,0.000179,2]
[393443166,1762660238597,-8224.13779044,0.000179,2]
[393443167,1762660238607,-3817.56231999,0.000179,2]
[393443168,1762660238617,-2443.97711224,0.000179,2]
[393443169,1762660238627,-333.0,0.00017908,2]
[393443170,1762660238637,-500.0,0.00017915,2]
[393443171,1762660238646,-500.0,0.00017915,2]
[393443172,1762660238656,-500.0,0.00017915,2]
[393443173,1762660238666,-500.0,0.00017915,2]
[393443174,1762660238676,-638.95883668,0.00017915,2]
[393443175,1762660238686,-16819.4691819,0.00017916,2]
[393443176,1762660238696,-1181.9898234,0.00017916,2]
[393443177,1762660238706,-41961.8060655,0.00017916,2]
[393443178,1762660238717,-333.0,0.00017938,2]
[393443179,1762660238727,-151.0,0.0001797,2]
[393443180,1762660238737,-329.0,0.00017973,2]
[393443181,1762660238746,-461.0,0.00017973,2]
[393443182,1762660238756,-500.0,0.00017973,2]
[393443183,1762660238766,-500.0,0.00017973,2]
[393443184,1762660238776,-500.0,0.00017973,2]
[393443185,1762660238786,-500.0,0.00017973,2]
[393443186,1762660238796,-501.42288003,0.00017973,2]
[393443187,1762660238806,-500.0,0.00017973,2]
[393443188,1762660238817,-500.96833596,0.00017973,2]
[393443189,1762660238827,-517.86787982,0.00017973,2]
[393443190,1762660238836,-500.0,0.00017973,2]
[393443191,1762660238847,-500.97801948,0.00017973,2]
[393443192,1762660238856,-500.0,0.00017973,2]
[393443193,1762660238866,-1616.56491994,0.0001799,2]
[393443194,1762660238877,-1616.56491994,0.0001799,2]
[393443195,1762660238886,-1616.56491994,0.0001799,2]
[393443196,1762660238896,-151.0,0.00017997,2]
[393443197,1762660238912,-666.0,0.00017999,2]
[393443198,1762660238922,-500.0,0.00017999,2]
[393443199,1762660238932,-500.0,0.00017999,2]
[393443200,1762660238943,-500.0,0.00017999,2]
[393443201,1762660238953,-500.0,0.00017999,2]
[393443202,1762660238964,-500.0,0.00017999,2]
[393443203,1762660238974,-500.0,0.00017999,2]
[393443204,1762660238987,-500.0,0.00017999,2]
[393443205,1762660238998,-500.0,0.00017999,2]
[393443206,1762660239008,-500.0,0.00017999,2]
[393443207,1762660239018,-500.0,0.00017999,2]
[393443208,1762660239028,-525.46020506,0.00017999,2]
[393443209,1762660239039,-666.0,0.00017999,2]
[393443210,1762660239052,-500.0,0.00017999,2]
[393443211,1762660239062,-500.0,0.00017999,2]
[393443212,1762660239072,-436.90186001,0.00017999,2]
[393443213,1762660239083,-500.0,0.00017999,2]
[393443214,1762660239093,-500.0,0.00017999,2]
[393443215,1762660239104,-500.0,0.00017999,2]
[393443216,1762660239115,-500.0,0.00017999,2]
[393443217,1762660239126,-459.59484775,0.00017999,2]
[393443218,1762660239136,-666.0,0.00017999,2]
[393443219,1762660239145,-500.0,0.00017999,2]
[393443220,1762660239155,-500.0,0.00017999,2]
[393443221,1762660239164,-500.0,0.00017999,2]
[393443222,1762660239174,-500.0,0.00017999,2]
[393443223,1762660239184,-500.0,0.00017999,2]
[393443224,1762660239194,-500.0,0.00017999,2]
[393443225,1762660239204,-500.0,0.00017999,2]
[393443226,1762660239216,-500.0,0.00017999,2]
[393443227,1762660239225,-351.64669004,0.00017999,2]
[393443228,1762660239235,-332.10480629,0.00017999,2]
[393443229,1762660239244,-241.21753528,0.00017999,2]
[393443230,1762660239254,-500.0,0.00017999,2]
[393443231,1762660239263,-500.0,0.00017999,2]
[393443232,1762660239273,-500.0,0.00017999,2]
[393443233,1762660239283,-500.0,0.00017999,2]
[393443234,1762660239293,-500.0,0.00017999,2]
[393443235,1762660239302,-500.0,0.00017999,2]
[393443236,1762660239312,-500.0,0.00017999,2]
[393443237,1762660239322,-500.0,0.00017999,2]
[393443238,1762660239331,-500.0,0.00017999,2]
[393443239,1762660239341,-500.0,0.00017999,2]
[393443240,1762660239350,-500.0,0.00017999,2]
[393443241,1762660239361,-500.0,0.00017999,2]
[393443242,1762660239370,-500.0,0.00017999,2]
[393443243,1762660239380,-500.0,0.00017999,2]
[393443244,1762660239390,-500.0,0.00017999,2]
[393443245,1762660239401,-500.0,0.00017999,2]
[393443246,1762660239411,-500.0,0.00017999,2]
[393443247,1762660239422,-500.0,0.00017999,2]
[393443248,1762660239431,-500.0,0.00017999,2]
[393443250,1762660239441,-500.0,0.00017999,2]
[393443252,1762660239452,-515.18918236,0.00017999,2]
[393443254,1762660239461,-604.41947902,0.00017999,2]
[393443256,1762660239470,-300.0,0.00017999,2]
[393443257,1762660239480,-500.0,0.00017999,2]
[393443258,1762660239490,-500.0,0.00017999,2]
[393443259,1762660239499,-187.23214529,0.00017999,2]
[393443260,1762660239508,-666.0,0.00017999,2]
[393443261,1762660239518,-15405.82580625,0.00017999,2]
[393443262,1762660239527,-3684.0,0.00018,2]
[393443263,1762660239538,-2724016.36111344,0.00018,2]
[393443264,1762660239563,-294.75802627,0.00018,2]
[393443265,1762660239703,-972.40684797,0.00017665,2]
[393443266,1762660239715,-508.75,0.00017665,2]
[393443267,1762660239726,-660.84315203,0.00017665,2]
[393443268,1762660239736,-1643.98712215,0.00018,2]
[393443275,1762660240809,-1.7e-07,0.00018,2]
[393443276,1762660240821,-989559.35214613,0.00018,2]
[393443277,1762660240830,-719058.75114389,0.00018,2]
[393443278,1762660240839,-695882.97894935,0.00018,2]
[393443279,1762660240848,-150.0,0.00018,2]
[393443280,1762660240858,-1293.03134316,0.00018,2]
[393443281,1762660240868,-928.31,0.00018,7]
[393443282,1762660240877,-2943013.66741906,0.00018,2]
[393443318,1762660244587,-150.0,0.00017869,2]
[393443319,1762660244596,-131.0726352,0.000179,2]
[393443320,1762660244747,-18.9273648,0.000179,2]
[393443321,1762660244758,-344.39790876,0.000179,2]
[393443322,1762660244803,-27.77749298,0.000179,2]
[393443323,1762660244814,-3498.20494547,0.00018,2]
[393443324,1762660244858,-589.34105002,0.00018,2]
[393443334,1762660246113,-112909.73528632,0.00018,2]
[393443335,1762660246125,-397.89200142,0.00018,2]
[393443337,1762660246136,-1372.4,0.00018,2]
[393443338,1762660246153,-3039.87070467,0.00018,2]
[393443340,1762660504886,178.91,0.00016156,2]
[393443341,1762660519071,-178.91,0.00016723,2]
[393443342,1762660519097,-316.13003576,0.00016861,2]
[393443343,1762660600066,500.0,0.000392,120]
[393443344,1762660600307,500.0,0.000392,120]
[393443346,1762660700433,580.0,0.000392,60]
[393443347,1762661005815,1610.00405971,0.00039196,120]
[393443348,1762661033974,1061.65194756,0.00039196,120]
[393443349,1762661079181,5321.0,0.00039196,60]
[393443350,1762661089037,-195.0314958,0.00016812,2]
[393443351,1762661092256,-21.1585042,0.00016812,2]
[393443352,1762661092278,-250.0,0.0001687,2]
[393443353,1762661092300,-195.0,0.00016872,2]
[393443354,1762661092323,-20.33354652,0.00016874,2]
[393443355,1762661094990,-174.66645348,0.00016874,2]
[393443356,1762661095012,-66.31591252,0.00016879,2]
[393443357,1762661096575,-151.89692149,0.00016879,2]
[393443358,1762661107839,178.56,0.00013476,2]
[393443359,1762661148949,-81.78716599,0.00016879,2]
[393443360,1762661148979,-255.111705,0.00016915,2]
[393443361,1762661149003,-6.79612318,0.00016951,2]
[393443362,1762661151739,-293.20387682,0.00016951,2]
[393443363,1762661151764,-177.72608485,0.00016952,2]
[393443364,1762661179028,-22.27391515,0.00016952,2]
[393443365,1762661179051,-232.90926647,0.00017,2]
[393443366,1762661183098,-17.09073353,0.00017,2]
[393443367,1762661183122,-219.96644488,0.00017014,2]
[393443370,1762661210154,-151.20378019,0.00016869,3]
[393443371,1762661211759,-151.0,0.00016869,3]
[393443372,1762661214654,-193.0,0.00016869,3]
[393443373,1762661216291,-310.52501261,0.00016869,3]
[393443374,1762661218404,-193.2712072,0.00016869,3]
[393443375,1762661218427,-57.74057971,0.00017014,2]
[393443376,1762661221109,959.59,0.00013699,2]
[393443394,1762661253963,-208.31562116,0.0001687,2]
[393443395,1762661256700,-362.36717236,0.0001687,2]
[393443396,1762661258340,-160.99919687,0.0001687,2]
[393443397,1762661261094,-239.84119403,0.0001687,2]
[393443398,1762661265237,-216.03,0.0001687,2]
[393443399,1762661267672,-254.48211157,0.0001687,2]
[393443401,1762661283961,-177.72900927,0.00016869,2]
[393443402,1762661285676,-122.27099073,0.00016869,2]
[393443403,1762661285697,-164.86527014,0.0001687,2]
[393443404,1762661288442,-176.8,0.0001687,2]
[393443405,1762661292131,-294.37900346,0.0001687,2]
[393443406,1762661294640,-219.46346885,0.0001687,2]
[393443407,1762661358967,-215.33977821,0.0001686,2]
[393443408,1762661361372,-189.62597835,0.0001686,2]
[393443409,1762661365891,-157.03424344,0.0001685,2]
[393443410,1762661367489,-83.62575656,0.0001685,2]
[393443411,1762661367514,-188.49424409,0.0001686,2]
[393443412,1762661370330,-250.0,0.0001686,2]
[393443413,1762661389877,-191.23413128,0.00016814,2]
[393443414,1762661392604,-58.76586872,0.00016814,2]
[393443415,1762661392625,-125.97381027,0.0001686,2]
[393443419,1762661431635,-30.56618908,0.0001686,2]
[393443420,1762661431646,-500.0,0.00016868,2]
[393443421,1762661431656,-300.0,0.00016868,2]
[393443422,1762661431665,-1200.0,0.00016868,2]
[393443423,1762661431675,-400.83308442,0.00016869,2]
[393443424,1762661431685,-300.0,0.00016869,2]
[393443425,1762661431695,-407.74894407,0.00016869,2]
[393443426,1762661431709,-500.0,0.00016869,2]
[393443427,1762661431719,-500.0,0.00016869,2]
[393443428,1762661431729,-500.0,0.00016869,2]
[393443429,1762661431738,-500.0,0.00016869,2]
[393443430,1762661431747,-500.0,0.00016869,2]
[393443431,1762661431756,-500.0,0.00016869,2]
[393443432,1762661431766,-500.0,0.00016869,2]
[393443433,1762661431775,-99.95260471,0.00016869,2]
[393443434,1762661431787,-400.04739529,0.00016869,2]
[393443435,1762661431797,-500.0,0.00016869,2]
[393443436,1762661431806,-550.876468,0.00016869,2]
[393443437,1762661431816,-500.0,0.00016869,2]
[393443438,1762661431825,-500.0,0.00016869,2]
[393443439,1762661431835,-500.0,0.00016869,2]
[393443440,1762661431845,-500.0,0.00016869,2]
[393443441,1762661431855,-500.0,0.00016869,2]
[393443442,1762661431864,-500.0,0.00016869,2]
[393443443,1762661431874,-500.0,0.00016869,2]
[393443444,1762661431884,-177.54630722,0.00016869,2]
[393443445,1762661431893,-277.595,0.00016869,2]
[393443446,1762661431903,-500.0,0.00016869,2]
[393443447,1762661431912,-500.0,0.00016869,2]
[393443448,1762661431921,-500.0,0.00016869,2]
[393443450,1762661431931,-2770.22554539,0.0001687,2]
[393443452,1762661431943,-44389.31335278,0.0001687,2]
[393443457,1762661431983,-407.12068079,0.0001687,2]
[393443459,1762661431995,-1736.55047373,0.0001687,2]
[393443460,1762661432006,-2264.46287556,0.0001687,2]
[393443466,1762661432116,-1310.27893922,0.0001687,2]
[393443468,1762661432128,-8425.43509409,0.0001687,2]
[393443469,1762661432138,-22.29297541,0.00017014,2]
[393443470,1762661432147,-168.0,0.00017232,2]
[393443471,1762661432157,-178.91,0.0001729,2]
[393443472,1762661432166,-375.75,0.00017364,2]
[393443473,1762661432175,-108.39275561,0.000174,6]
[393443476,1762661437680,-391.60724439,0.000174,6]
[393443477,1762661437689,-18213.888,0.000175,2]
[393443478,1762661437699,-150.0,0.000175,2]
[393443479,1762661437708,-1000.0,0.000175,6]
[393443480,1762661437718,-906.0,0.00017561,2]
[393443481,1762661437727,-1189.0,0.00017561,2]
[393443482,1762661437737,-6661.0,0.00017575,2]
[393443483,1762661437747,-6478.0,0.00017575,2]
[393443484,1762661437756,-2142.0,0.00017575,2]
[393443485,1762661437765,-3098.0,0.00017575,2]
[393443486,1762661437775,-150.0,0.000176,2]
[393443487,1762661437785,-1600.0,0.000176,6]
[393443488,1762661437794,-1726.84557519,0.00017622,2]
[393443489,1762661437803,-1186.96,0.00017665,2]
[393443490,1762661437813,-259.0,0.00017665,2]
[393443491,1762661437822,-150.0,0.00017665,2]
[393443492,1762661437831,-200.0,0.00017665,2]
[393443493,1762661437841,-206.694,0.00017665,2]
[393443494,1762661437850,-250.0,0.00017665,2]
[393443495,1762661437860,-216.331,0.00017665,2]
[393443497,1762661437871,-152.787,0.00017665,2]
[393443499,1762661437880,-188.67,0.00017665,2]
[393443500,1762661437890,-188.931,0.00017665,2]
[393443501,1762661437900,-269.989,0.00017665,2]
[393443502,1762661437910,-162.145,0.00017665,2]
[393443503,1762661437921,-209.91,0.00017665,2]
[393443504,1762661437938,-266.384,0.00017665,2]
[393443505,1762661437948,-221.078,0.00017665,2]
[393443506,1762661437957,-608.0,0.00017665,2]
[393443507,1762661437967,-1316.0,0.00017665,2]
[393443508,1762661437976,-3425.0,0.00017665,2]
[393443509,1762661437986,-574.0,0.00017665,2]
[393443510,1762661437996,-820.0,0.00017665,2]
[393443511,1762661438004,-1596.0,0.00017665,2]
[393443512,1762661438014,-813.0,0.00017665,2]
[393443513,1762661438023,-1273.0,0.00017665,2]
[393443514,1762661438033,-375.91,0.00017677,2]
[393443515,1762661438042,-1204.46,0.000177,2]
[393443516,1762661438052,-2100.0,0.000177,6]
[393443517,1762661438061,-168.0,0.00017733,2]
[393443518,1762661438072,-240.66,0.00017787,2]
[393443519,1762661438082,-2600.0,0.000178,6]
[393443520,1762661438093,-510.45462,0.0001782,2]
[393443521,1762661438103,-168.0,0.00017821,2]
[393443522,1762661438113,-2000.0,0.00017856,2]
[393443523,1762661438123,-178.91,0.00017857,2]
[393443524,1762661438133,-500.0,0.00017863,2]
[393443525,1762661438145,-500.0,0.00017873,2]
[393443526,1762661438155,-318.28674892,0.00017873,2]
[393443527,1762661438165,-500.0,0.00017873,2]
[393443528,1762661438328,-500.8149418,0.00017873,2]
[393443529,1762661438338,-500.0,0.00017873,2]
[393443530,1762661438349,-2500.0,0.00017899,2]
[393443531,1762661438359,-150.0,0.00017899,2]
[393443532,1762661438370,-262.54057205,0.00017899,2]
[393443533,1762661438381,-156.52540464,0.00017899,2]
[393443534,1762661438392,-251.94759367,0.00017899,2]
[393443535,1762661438402,-6955.74922236,0.00017899,2]
[393443536,1762661438412,-150.0,0.00017899,2]
[393443537,1762661438423,-500.0,0.00017899,2]
[393443538,1762661438432,-500.0,0.00017899,2]
[393443539,1762661438442,-533.0,0.00017899,2]
[393443540,1762661438451,-500.0,0.00017899,2]
[393443541,1762661438461,-296.65203936,0.00017899,2]
[393443542,1762661438471,-500.0,0.00017899,2]
[393443543,1762661438481,-234.83072037,0.00017899,2]
[393443544,1762661438491,-191.88776814,0.00017899,2]
[393443545,1762661438500,-6955.74922229,0.00017899,2]
[393443546,1762661438510,-6955.74922229,0.00017899,2]
[393443547,1762661438520,-6955.74922229,0.00017899,2]
[393443548,1762661438529,-6955.74922229,0.00017899,2]
[393443549,1762661438538,-6955.74922229,0.000179,2]
[393443550,1762661438547,-6955.74922229,0.000179,2]
[393443551,1762661438556,-6955.74922229,0.000179,2]
[393443552,1762661438566,-6955.74922229,0.000179,2]
[393443553,1762661438575,-164.54588343,0.000179,2]
[393443554,1762661438586,-1000.0,0.000179,2]
[393443555,1762661438596,-5000.0,0.000179,2]
[393443556,1762661438606,-6955.74922229,0.000179,2]
[393443557,1762661438616,-258.50333623,0.000179,2]
[393443558,1762661438626,-817.27095382,0.000179,2]
[393443559,1762661438637,-96022.75448116,0.000179,2]
[393443560,1762661438647,-3817.56231999,0.000179,2]
[393443561,1762661438657,-500.0,0.000179,6]
[393443562,1762661438667,-3710.14038524,0.000179,2]
[393443563,1762661438677,-500.0,0.00017902,2]
[393443564,1762661438686,-500.0,0.00017915,2]
[393443565,1762661438696,-4968.0991648,0.00017929,2]
[393443566,1762661438706,-723.05,0.0001793,2]
[393443567,1762661438716,-1186.96,0.00017939,2]
[393443568,1762661438726,-168.0,0.00017942,2]
[393443569,1762661438735,-329.0,0.00017973,2]
[393443570,1762661438745,-461.0,0.00017973,2]
[393443571,1762661438754,-500.0,0.00017973,2]
[393443572,1762661438764,-500.0,0.00017973,2]
[393443573,1762661438773,-500.0,0.00017973,2]
[393443574,1762661438783,-500.0,0.00017973,2]
[393443575,1762661438792,-578.82866275,0.00017973,2]
[393443576,1762661438802,-500.0,0.00017973,2]
[393443577,1762661438812,-503.70945434,0.00017973,2]
[393443578,1762661438822,-500.0,0.00017973,2]
[393443579,1762661438832,-501.18079556,0.00017973,2]
[393443580,1762661438842,-500.0,0.00017973,2]
[393443581,1762661438851,-500.0,0.00017973,2]
[393443582,1762661438861,-503.93536918,0.00017973,2]
[393443583,1762661438870,-500.0,0.00017973,2]
[393443584,1762661438880,-500.0,0.00017973,2]
[393443585,1762661438889,-501.71610293,0.00017973,2]
[393443586,1762661438899,-1616.56491994,0.0001799,2]
[393443587,1762661438909,-1616.56491994,0.0001799,2]
[393443588,1762661438919,-1616.56491994,0.0001799,2]
[393443589,1762661438929,-6379.74742493,0.00017992,2]
[393443590,1762661438939,-151.0,0.00017997,2]
[393443591,1762661438949,-500.0,0.00017999,2]
[393443592,1762661438959,-500.0,0.00017999,2]
[393443593,1762661438970,-500.0,0.00017999,2]
[393443594,1762661438979,-500.0,0.00017999,2]
[393443595,1762661438989,-500.0,0.00017999,2]
[393443596,1762661439000,-500.0,0.00017999,2]
[393443597,1762661439009,-500.0,0.00017999,2]
[393443598,1762661439019,-500.0,0.00017999,2]
[393443599,1762661439029,-500.0,0.00017999,2]
[393443600,1762661439039,-500.0,0.00017999,2]
[393443601,1762661439048,-264.24979066,0.00017999,2]
[393443602,1762661439058,-205.85842605,0.00017999,2]
[393443603,1762661439068,-666.0,0.00017999,2]
[393443604,1762661439079,-500.0,0.00017999,2]
[393443605,1762661439089,-500.0,0.00017999,2]
[393443606,1762661439098,-500.0,0.00017999,2]
[393443607,1762661439108,-500.0,0.00017999,2]
[393443608,1762661439118,-500.0,0.00017999,2]
[393443609,1762661439128,-500.0,0.00017999,2]
[393443610,1762661439138,-459.59484775,0.00017999,2]
[393443611,1762661439148,-500.0,0.00017999,2]
[393443612,1762661439159,-332.10480629,0.00017999,2]
[393443613,1762661439169,-500.0,0.00017999,2]
[393443614,1762661439179,-241.21753528,0.00017999,2]
[393443615,1762661439190,-500.0,0.00017999,2]
[393443616,1762661439200,-500.0,0.00017999,2]
[393443617,1762661439210,-500.0,0.00017999,2]
[393443618,1762661439220,-500.0,0.00017999,2]
[393443619,1762661439231,-500.0,0.00017999,2]
[393443620,1762661439244,-500.0,0.00017999,2]
[393443621,1762661439255,-500.0,0.00017999,2]
[393443622,1762661439265,-500.0,0.00017999,2]
[393443623,1762661439275,-500.0,0.00017999,2]
[393443624,1762661439285,-500.0,0.00017999,2]
[393443625,1762661439294,-500.0,0.00017999,2]
[393443626,1762661439307,-500.0,0.00017999,2]
[393443627,1762661439318,-500.0,0.00017999,2]
[393443628,1762661439328,-500.0,0.00017999,2]
[393443629,1762661439338,-500.0,0.00017999,2]
[393443630,1762661439350,-500.0,0.00017999,2]
[393443631,1762661439361,-500.0,0.00017999,2]
[393443632,1762661439371,-500.0,0.00017999,2]
[393443633,1762661439382,-500.0,0.00017999,2]
[393443634,1762661439392,-500.0,0.00017999,2]
[393443635,1762661439402,-500.0,0.00017999,2]
[393443636,1762661439413,-515.18918236,0.00017999,2]
[393443637,1762661439423,-500.0,0.00017999,2]
[393443638,1762661439432,-604.41947902,0.00017999,2]
[393443639,1762661439442,-638.95883668,0.00017999,2]
[393443640,1762661439452,-307.54098138,0.00017999,2]
[393443641,1762661439462,-666.0,0.00017999,2]
[393443642,1762661439471,-319.95081928,0.00017999,2]
[393443643,1762661439482,-500.0,0.00017999,2]
[393443644,1762661439492,-500.0,0.00017999,2]
[393443645,1762661439502,-512.94152369,0.00017999,2]
[393443646,1762661439512,-500.0,0.00017999,2]
[393443647,1762661439521,-542.2660844,0.00017999,2]
[393443648,1762661439531,-665.48442667,0.00017999,2]
[393443649,1762661439541,-12602.8797236,0.00017999,2]
[393443650,1762661439552,-300.0,0.00017999,2]
[393443651,1762661439563,-666.0,0.00017999,2]
[393443652,1762661439573,-500.0,0.00017999,2]
[393443653,1762661439583,-500.0,0.00017999,2]
[393443654,1762661439593,-500.0,0.00017999,2]
[393443655,1762661439603,-666.0,0.00017999,2]
[393443656,1762661439613,-500.0,0.00017999,2]
[393443657,1762661439623,-500.0,0.00017999,2]
[393443658,1762661439634,-187.23214529,0.00017999,2]
[393443659,1762661439643,-500.0,0.00017999,2]
[393443660,1762661439652,-500.0,0.00017999,2]
[393443661,1762661439662,-500.0,0.00017999,2]
[393443662,1762661439671,-500.0,0.00017999,2]
[393443663,1762661439680,-500.0,0.00017999,2]
[393443664,1762661439690,-500.0,0.00017999,2]
[393443665,1762661439699,-500.0,0.00017999,2]
[393443666,1762661439709,-500.0,0.00017999,2]
[393443667,1762661439719,-500.0,0.00017999,2]
[393443668,1762661439729,-500.0,0.00017999,2]
[393443669,1762661439739,-500.0,0.00017999,2]
[393443670,1762661439748,-500.0,0.00017999,2]
[393443671,1762661439758,-500.0,0.00017999,2]
[393443672,1762661439768,-500.0,0.00017999,2]
[393443673,1762661439778,-525.46020506,0.00017999,2]
[393443674,1762661439788,-500.0,0.00017999,2]
[393443675,1762661439798,-500.0,0.00017999,2]
[393443676,1762661439807,-500.0,0.00017999,2]
[393443677,1762661439816,-500.0,0.00017999,2]
[393443678,1762661439826,-500.0,0.00017999,2]
[393443679,1762661439835,-500.0,0.00017999,2]
[393443680,1762661439845,-500.0,0.00017999,2]
[393443681,1762661439855,-436.90186001,0.00017999,2]
[393443682,1762661439865,-411.47396237,0.00017999,2]
[393443683,1762661439875,-4720.0,0.00018,2]
[393443684,1762661439885,-3062804.20555369,0.00018,2]
[393443685,1762661439899,-741.12790483,0.00018,2]
[393443686,1762661439910,-3344.67193068,0.00018,2]
[393443689,1762661440295,-559.0,0.00017575,2]
[393443690,1762661440309,-269.35917809,0.000179,2]
[393443691,1762661440318,-2736.89082191,0.00018,2]
[393443692,1762661440764,-1.7e-07,0.00018,2]
[393443693,1762661440776,-2566837.08532258,0.00018,2]
[393443694,1762661440786,-140213.47817788,0.00018,2]
[393443695,1762661440796,-484.660239,0.00018,2]
[393443696,1762661440919,-201.25645,0.00018,2]
[393443697,1762661440930,-570.297092,0.00018,2]
[393443698,1762661440943,-151.0,0.00018,2]
[393443699,1762661440953,-250.0,0.00018,2]
[393443700,1762661440963,-250.0,0.00018,2]
[393443701,1762661440972,-250.0,0.00018,2]
[393443702,1762661440982,-250.0,0.00018,2]